bitfinex/quotes_ETHUSD_20230830
["timestamp","ask_amount","ask_price","bid_price","bid_amount"]
[1693361227710,3.0,1719.8,1719.7,4.39172671]
[1693361227913,3.0,1720.0,1719.7,4.39172671]
[1693361228209,9.68186569,1720.0,1719.7,3.98338792]
[1693361230079,15.49589569,1720.0,1719.7,3.98338792]
[1693361230616,15.49589569,1720.0,1719.7,2.57638792]
[1693361231842,21.30992569,1720.0,1719.7,2.57638792]
[1693361232555,20.44209,1720.0,1719.7,2.57638792]
[1693361238450,0.48,1719.9,1719.7,2.57638792]
[1693361238620,5.81462,1719.8,1719.7,2.57638792]
[1693361239157,8.81462,1719.8,1719.7,2.57638792]
[1693361243490,3.0,1719.8,1719.7,2.57638792]
[1693361244846,3.0,1719.9,1719.7,2.57638792]
[1693361247350,3.0,1719.9,1719.7,8.70138792]
[1693361249249,3.0,1719.9,1719.7,11.37758792]
[1693361249996,3.0,1719.9,1719.7,8.70138792]
[1693361252400,8.81438,1719.9,1719.7,8.70138792]
[1693361253258,8.81438,1719.9,1719.7,11.37548792]
[1693361264157,3.0,1719.9,1719.7,11.37548792]
[1693361265760,3.45874431,1719.9,1719.7,11.37548792]
[1693361269205,3.0,1719.9,1719.7,11.37548792]
[1693361269507,8.81434,1719.9,1719.7,11.37548792]
[1693361279461,3.0,1719.9,1719.8,1.01040445]
[1693361281168,3.0,1719.9,1719.8,7.13540445]
[1693361281529,3.0,1719.9,1719.8,9.98257807]
[1693361281731,3.46490196,1720.1,1719.8,9.98257807]
[1693361282049,3.46490196,1720.1,1719.9,1.01040445]
[1693361282230,3.46490196,1720.1,1719.9,7.13540445]
[1693361282435,3.46490196,1720.1,1719.9,8.7422]
[1693361283858,3.0,1720.1,1719.9,9.96202175]
[1693361284101,3.0,1720.1,1720.0,7.532]
[1693361284359,3.0,1720.3,1720.0,8.54227618]
[1693361284672,3.0,1720.3,1720.0,7.532]
[1693361284673,8.81295,1720.3,1720.0,7.532]
[1693361284847,8.81295,1720.3,1720.0,9.01713462]
[1693361285239,10.54605,1720.3,1720.0,9.01713462]
[1693361285826,10.54605,1720.3,1720.0,2.89213462]
[1693361286031,10.54605,1720.3,1719.9,8.2437024]
[1693361286032,16.359,1720.3,1719.9,2.6172]
[1693361286643,6.29341,1720.2,1719.9,2.6172]
[1693361287063,3.0,1720.1,1719.9,2.6172]
[1693361291909,3.0,1720.1,1720.0,1.407]
[1693361292109,4.7331,1720.3,1720.0,1.407]
[1693361293183,10.54612,1720.3,1719.9,11.7556]
[1693361295487,16.35914,1720.3,1719.9,11.7556]
[1693361296819,16.35914,1720.3,1719.9,10.1492]
[1693361299215,16.35914,1720.3,1719.9,8.7422]
[1693361299514,16.35914,1720.3,1719.9,11.61568065]
[1693361299678,16.35914,1720.3,1719.9,13.02268065]
[1693361300783,10.54612,1720.3,1719.9,13.02268065]
[1693361300989,16.35914,1720.3,1719.9,2.6172]
[1693361304709,4.7331,1720.3,1720.0,1.407]
[1693361305044,3.0,1720.3,1720.0,1.407]
[1693361305254,4.30830644,1720.4,1720.0,2.42192]
[1693361305402,3.4569181,1720.4,1720.1,7.532]
[1693361305603,0.4569181,1720.4,1720.1,10.1698]
[1693361305836,17.57009863,1720.5,1720.1,10.1698]
[1693361306053,11.75762863,1720.5,1720.1,11.57562007]
[1693361307243,10.53858,1720.5,1720.1,11.57562007]
[1693361310961,4.7262,1720.5,1720.1,11.57562007]
[1693361311463,4.7262,1720.5,1720.1,14.44910072]
[1693361312462,3.0,1720.5,1720.1,14.44910072]
[1693361314730,3.0,1720.5,1720.3,6.125]
[1693361315154,3.0,1720.5,1720.3,8.7909]
[1693361315934,3.0,1720.5,1720.4,6.125]
[1693361317085,3.0,1720.5,1720.3,2.6659]
[1693361317288,8.81226,1720.5,1720.3,2.6659]
[1693361324805,3.0,1720.5,1720.3,2.6659]
[1693361329707,8.81226,1720.5,1720.0,1.01492]
[1693361329911,10.69146,1720.5,1720.1,2.6752]
[1693361330711,10.69146,1720.5,1720.1,8.8002]
[1693361330906,10.69146,1720.5,1720.1,2.6752]
[1693361335026,10.69146,1720.5,1720.1,8.8002]
[1693361335219,10.69146,1720.5,1720.1,2.6752]
[1693361336104,10.69146,1720.5,1720.1,8.8002]
[1693361336304,11.91050863,1720.5,1720.1,8.8002]
[1693361337309,11.91050863,1720.5,1720.1,2.6752]
[1693361339134,11.91050863,1720.5,1720.1,8.8002]
[1693361339334,10.69146,1720.5,1720.1,8.8002]
[1693361339833,10.69146,1720.5,1720.1,2.6752]
[1693361340041,0.48,1720.4,1720.1,2.6752]
[1693361340739,2.3488,1720.4,1720.1,2.6752]
[1693361340907,8.81226,1720.5,1720.1,2.6752]
[1693361341300,10.68106,1720.5,1720.1,2.6752]
[1693361341637,16.49348,1720.5,1720.1,2.6752]
[1693361341836,17.71252863,1720.5,1720.1,2.6752]
[1693361342041,0.48,1720.4,1720.1,2.6752]
[1693361342239,6.29269,1720.4,1719.8,2.93132137]
[1693361342435,6.29269,1720.4,1719.9,3.6436928]
[1693361342642,1.8688,1720.3,1719.9,2.6334]
[1693361342836,1.8688,1720.3,1719.9,4.227]
[1693361343063,1.8688,1720.3,1719.9,5.2301802]
[1693361347347,1.8688,1720.3,1720.0,1.01029324]
[1693361350755,1.8688,1720.3,1719.9,4.83672855]
[1693361350756,1.8688,1720.3,1719.9,4.83754987]
[1693361350960,1.8688,1720.3,1720.0,1.01029749]
[1693361356971,2.33559077,1720.3,1720.0,1.01029749]
[1693361361071,2.33559077,1720.3,1719.9,4.227]
[1693361365148,2.33559077,1720.3,1720.0,1.01032248]
[1693361365547,0.46679077,1720.3,1720.0,7.13532248]
[1693361365879,12.4112754,1720.5,1720.0,7.13532248]
[1693361365880,12.4112754,1720.5,1720.0,6.125]
[1693361366179,14.1743754,1720.5,1720.0,7.36195499]
[1693361366373,14.1743754,1720.5,1720.1,2.6083]
[1693361368891,1.22112758,1720.4,1720.1,2.6083]
[1693361374757,3.11142758,1720.4,1720.1,2.6083]
[1693361382238,3.58402262,1720.4,1720.1,2.6083]
[1693361387041,1.69372262,1720.4,1720.1,2.6083]
[1693361388557,1.69411164,1720.4,1720.1,2.6083]
[1693361393758,3.44791164,1720.4,1720.1,2.6083]
[1693361396989,0.47259504,1720.4,1720.1,2.6083]
[1693361397349,7.47521235,1720.5,1720.1,2.6083]
[1693361397665,7.47521235,1720.5,1720.1,3.70730882]
[1693361397867,0.47029529,1720.6,1720.5,6.125]
[1693361398052,2.74841235,1720.8,1720.5,8.99848065]
[1693361398259,7.33763575,1721.0,1720.5,10.40548065]
[1693361398451,9.06443575,1721.0,1720.5,13.09428065]
[1693361398762,3.25369575,1721.0,1720.5,14.46477754]
[1693361398982,7.53741,1721.0,1720.5,14.46477754]
[1693361399151,8.00325905,1721.0,1720.5,14.46477754]
[1693361399891,8.18193187,1721.0,1720.5,14.46477754]
[1693361400091,3.0,1720.9,1720.5,14.46477754]
[1693361400311,3.0,1720.9,1720.6,1.44647775]
[1693361402349,3.0,1720.9,1720.5,11.68728065]
[1693361402552,8.81093,1720.9,1720.5,11.68728065]
[1693361408639,14.62186,1720.9,1720.5,2.6888]
[1693361409130,6.29132,1720.8,1720.3,2.7254]
[1693361409336,3.0,1720.7,1720.3,2.7254]
[1693361409632,3.0,1720.7,1720.3,8.8504]
[1693361409836,11.03033,1720.8,1720.3,8.8504]
[1693361416470,11.03033,1720.8,1720.3,10.3701]
[1693361417296,11.03033,1720.8,1720.3,8.8504]
[1693361420983,4.739,1720.8,1720.4,8.99848065]
[1693361421487,4.739,1720.8,1720.5,2.7118]
[1693361421785,5.20136802,1720.8,1720.5,2.7118]
[1693361421973,5.20136802,1720.8,1720.5,3.88282807]
[1693361430008,11.01267802,1720.8,1720.5,3.88282807]
[1693361435227,11.01267802,1720.8,1720.5,2.7118]
[1693361449500,11.88773255,1720.8,1720.5,2.7118]
[1693361451796,17.69904255,1720.8,1720.2,6.73568823]
[1693361452096,17.69904255,1720.8,1720.3,6.49999519]
[1693361452302,1.7891,1720.7,1720.3,5.48988065]
[1693361452502,4.7891,1720.7,1720.3,5.48988065]
[1693361454100,4.7891,1720.7,1720.3,2.6164]
[1693361454292,10.60076,1720.7,1720.3,2.6164]
[1693361454490,22.224,1720.7,1720.3,2.6164]
[1693361454800,0.48,1720.6,1720.0,1.52672057]
[1693361455008,6.29198,1720.6,1720.1,2.6816]
[1693361455163,3.0,1720.5,1720.1,2.6816]
[1693361456100,10.55277,1720.5,1720.1,2.6816]
[1693361465455,11.44142681,1720.5,1720.1,2.6816]
[1693361466447,11.91202599,1720.5,1720.1,2.6816]
[1693361467560,12.08813004,1720.5,1720.1,2.6816]
[1693361472071,17.90040004,1720.5,1720.1,2.6816]
[1693361474487,0.48,1720.4,1720.1,2.6816]
[1693361474674,5.81293,1720.3,1720.1,2.6816]
[1693361477582,8.80931436,1720.4,1720.1,2.6816]
[1693361477583,6.29266,1720.4,1720.1,2.6816]
[1693361477782,3.0,1720.3,1720.1,2.6816]
[1693361489229,3.47547239,1720.3,1720.1,2.6816]
[1693361490729,9.28841239,1720.3,1720.1,2.6816]
[1693361499969,3.47547239,1720.3,1720.1,2.6816]
[1693361502415,9.28841239,1720.3,1720.1,2.6816]
[1693361510287,3.47547239,1720.3,1720.1,2.6816]
[1693361516330,3.47547239,1720.3,1720.1,5.55508065]
[1693361516531,0.47547239,1720.3,1720.2,1.01018929]
[1693361516832,4.53536004,1720.5,1720.2,2.48098511]
[1693361517035,3.17610405,1720.5,1720.2,1.47079582]
[1693361520743,3.17610405,1720.5,1720.2,4.34427647]
[1693361522070,3.17610405,1720.5,1720.0,0.91603234]
[1693361522364,26.25416,1720.2,1719.7,3.80268572]
[1693361522513,26.25416,1720.2,1719.3,4.54583319]
[1693361522514,3.0,1719.5,1719.0,1.407]
[1693361522714,3.0,1719.5,1719.1,1.62138778]
[1693361522715,3.86700034,1719.4,1719.1,1.62138778]
[1693361523053,4.10815629,1719.3,1719.2,2.81997434]
[1693361523228,4.10815629,1719.3,1718.8,2.13730169]
[1693361523229,19.55740557,1719.3,1719.0,1.52664406]
[1693361523429,3.0,1719.1,1718.8,0.61081431]
[1693361523612,3.0,1718.9,1718.8,0.61081431]
[1693361523919,14.98882065,1718.9,1718.6,0.1]
[1693361524115,7.22433,1719.0,1718.6,0.1]
[1693361524361,1.407,1719.0,1718.6,0.1]
[1693361524532,1.407,1719.0,1718.8,6.125]
[1693361524734,1.407,1719.0,1718.7,0.61081431]
[1693361524735,0.29595641,1719.2,1718.9,7.532]
[1693361525030,3.0,1719.4,1719.0,6.8782]
[1693361525344,5.81536,1719.6,1719.0,43.2852]
[1693361525526,36.37575,1720.0,1719.1,9.125]
[1693361525732,29.98,1720.0,1719.4,1.407]
[1693361525953,5.81429,1719.9,1719.4,6.125]
[1693361526130,7.22033,1720.2,1719.5,7.532]
[1693361526131,5.81333,1720.2,1719.5,7.532]
[1693361526335,5.81333,1720.2,1719.6,0.7532]
[1693361526929,11.62689,1720.2,1719.6,6.8782]
[1693361527128,13.03389,1720.2,1719.6,6.8782]
[1693361527325,11.62689,1720.2,1719.6,6.8782]
[1693361529156,3.0,1720.1,1719.6,6.8782]
[1693361529341,5.81397,1720.0,1719.6,6.8782]
[1693361529541,3.0,1719.9,1719.7,0.68782]
[1693361529883,3.0,1720.1,1719.6,1.974]
[1693361530080,3.0,1719.5,1719.2,0.61081431]
[1693361530238,3.0,1719.5,1719.0,10.92795931]
[1693361530239,3.0,1719.3,1719.0,8.18]
[1693361530439,6.87895683,1719.2,1718.6,0.1]
[1693361530676,3.0,1719.1,1718.7,0.61081431]
[1693361530881,8.81602,1719.4,1718.7,0.61081431]
[1693361531067,3.0,1719.4,1719.1,0.60646347]
[1693361531441,3.0,1719.6,1719.1,6.73146347]
[1693361531641,5.81481,1719.8,1719.1,9.37860982]
[1693361531841,11.6297,1719.8,1719.1,7.40460982]
[1693361532078,11.6297,1719.8,1719.1,6.73146347]
[1693361532079,13.6037,1719.8,1719.1,6.73146347]
[1693361532281,0.58200683,1719.7,1719.1,6.73146347]
[1693361532580,13.6037,1719.8,1719.1,6.73146347]
[1693361532581,5.81481,1719.8,1719.1,8.70546347]
[1693361532878,5.81481,1719.8,1719.2,6.99554635]
[1693361533079,3.0,1719.7,1719.2,6.99554635]
[1693361533285,16.60418,1719.7,1719.1,0.60646347]
[1693361533452,8.81509,1719.7,1719.1,0.60646347]
[1693361533653,14.63018,1719.7,1719.1,0.60646347]
[1693361533853,16.60418,1719.7,1719.1,0.60646347]
[1693361534056,8.81509,1719.7,1719.1,0.60646347]
[1693361534266,8.81509,1719.7,1719.2,2.6558]
[1693361534791,16.60405,1719.7,1719.2,2.6558]
[1693361535222,10.78896,1719.7,1719.2,2.6558]
[1693361535666,3.0,1719.7,1719.2,9.71952635]
[1693361535860,5.81432,1719.9,1719.2,9.71952635]
[1693361535861,3.0,1719.8,1719.2,9.71952635]
[1693361536379,29.98,1720.2,1719.5,6.125]
[1693361536563,13.33524,1720.3,1719.7,6.125]
[1693361536763,11.62657,1720.2,1719.7,6.125]
[1693361536996,11.62657,1720.2,1719.8,2.5424]
[1693361537328,5.81262,1720.4,1719.8,8.6674]
[1693361537487,35.79231,1720.5,1720.0,6.125]
[1693361537691,3.58200683,1720.9,1719.9,0.86674]
[1693361537692,36.37226,1721.0,1720.2,6.125]
[1693361537998,5.81141,1720.8,1720.2,6.125]
[1693361538182,5.81162,1720.7,1720.3,2.5424]
[1693361538806,5.811,1720.9,1720.3,2.5424]
[1693361538972,11.62219,1720.9,1720.3,2.5424]
[1693361539486,12.20419683,1720.9,1720.3,2.5424]
[1693361540094,9.29129,1720.8,1720.3,2.5424]
[1693361541107,9.87329683,1720.8,1720.3,2.5424]
[1693361541611,15.68458683,1720.8,1720.3,2.5424]
[1693361541807,15.68458683,1720.8,1720.3,8.6674]
[1693361542109,8.81128,1720.8,1720.3,8.6674]
[1693361542409,15.20456683,1720.8,1720.3,8.6674]
[1693361543393,15.20456683,1720.8,1720.3,11.54088065]
[1693361544220,15.20456683,1720.8,1720.5,6.125]
[1693361544221,3.0,1720.8,1720.5,6.125]
[1693361544430,8.81096,1720.9,1720.5,8.99848065]
[1693361545277,3.0,1720.9,1720.5,8.99848065]
[1693361545679,3.0,1720.9,1720.6,2.87348065]
[1693361547019,3.0,1720.9,1720.6,8.99848065]
[1693361549225,8.81093,1720.9,1720.6,8.99848065]
[1693361551116,8.81093,1720.9,1720.4,8.099]
[1693361551439,8.81093,1720.9,1720.5,10.97248065]
[1693361552655,15.20386683,1720.9,1720.4,7.30454881]
[1693361552855,15.20386683,1720.9,1720.4,8.99848065]
[1693361553951,9.39293683,1720.9,1720.4,8.99848065]
[1693361554253,9.39293683,1720.9,1720.4,10.97248065]
[1693361554956,3.58200683,1720.9,1720.4,10.97248065]
[1693361555162,3.58200683,1720.9,1720.5,3.97072872]
[1693361555462,0.46456536,1721.0,1720.7,6.125]
[1693361555663,3.0,1721.0,1720.7,10.97248065]
[1693361556342,3.0,1721.0,1720.7,8.99848065]
[1693361556868,21.01373683,1721.0,1720.2,8.099]
[1693361557168,12.68414683,1720.9,1720.4,2.762]
[1693361557341,3.0,1720.8,1720.4,5.63548065]
[1693361558267,3.0,1720.8,1720.5,4.84748065]
[1693361558426,3.0,1720.9,1720.5,4.84748065]
[1693361558629,3.0,1720.9,1720.5,6.22092872]
[1693361558929,10.61214,1721.0,1720.5,6.22092872]
[1693361559165,5.38350683,1721.0,1720.5,6.22092872]
[1693361561371,5.38350683,1721.0,1720.5,12.34592872]
[1693361563472,0.46897898,1721.1,1720.8,6.125]
[1693361563785,5.80906,1721.5,1721.0,8.099]
[1693361563944,5.80906,1721.5,1721.1,4.84748065]
[1693361564142,5.80906,1721.5,1721.1,7.37828065]
[1693361564841,3.0,1721.4,1721.1,7.37828065]
[1693361565053,3.0,1721.4,1721.1,5.40428065]
[1693361566868,3.0,1721.4,1721.1,6.75460872]
[1693361567068,3.0,1721.5,1721.1,6.75460872]
[1693361567563,3.0,1721.5,1721.1,12.87960872]
[1693361567889,8.809,1721.5,1721.1,11.52928065]
[1693361570359,14.618,1721.5,1721.1,5.40428065]
[1693361571699,8.809,1721.5,1721.1,5.40428065]
[1693361576401,3.0,1721.5,1721.2,8.099]
[1693361576706,8.80859,1721.6,1721.3,3.68338065]
[1693361576878,8.80859,1721.6,1721.3,2.87348065]
[1693361580213,8.80859,1721.6,1721.1,8.6558]
[1693361580402,14.61718,1721.6,1721.1,5.40428065]
[1693361580779,14.61718,1721.6,1721.1,7.37828065]
[1693361580986,14.61718,1721.6,1721.2,2.87348065]
[1693361581310,3.0,1721.6,1721.2,8.99848065]
[1693361581511,8.80861,1721.6,1721.1,3.26862807]
[1693361581714,14.61722,1721.6,1721.1,5.40428065]
[1693361582275,14.61722,1721.6,1721.1,11.52928065]
[1693361583586,8.80861,1721.6,1721.2,2.87348065]
[1693361583787,3.0,1721.6,1721.4,1.407]
[1693361584014,9.56189645,1721.7,1721.4,2.87348065]
[1693361584413,9.56189645,1721.7,1721.4,5.46128065]
[1693361584914,9.56189645,1721.7,1721.4,2.5878]
[1693361585118,21.17843645,1721.7,1721.2,2.5878]
[1693361585415,21.17843645,1721.7,1721.2,5.46128065]
[1693361586715,21.17843645,1721.7,1721.2,2.5878]
[1693361588617,0.48,1721.6,1720.9,9.1619]
[1693361588823,11.61809,1721.5,1721.0,11.63308065]
[1693361588986,5.80889,1721.5,1721.0,13.04008065]
[1693361589182,5.80889,1721.5,1721.0,14.60475034]
[1693361589614,7.69939,1721.5,1721.0,14.60475034]
[1693361590082,1.8905,1721.5,1721.0,14.60475034]
[1693361590282,4.8905,1721.5,1721.0,14.60475034]
[1693361590597,10.69944,1721.5,1721.0,14.60475034]
[1693361591896,16.50838,1721.5,1721.0,5.50808065]
[1693361592091,22.31732,1721.5,1721.0,5.50808065]
[1693361592287,16.50838,1721.5,1721.0,5.50808065]
[1693361597034,16.45838,1721.5,1721.0,5.50808065]
[1693361597942,22.26732,1721.5,1721.0,2.6346]
[1693361598849,16.45838,1721.5,1721.0,2.6346]
[1693361599446,17.37048182,1721.5,1721.0,2.6346]
[1693361599650,23.17942182,1721.5,1721.0,2.6346]
[1693361601613,0.91210182,1721.4,1721.0,2.6346]
[1693361601820,5.80963,1721.3,1721.0,2.6346]
[1693361604688,13.74926174,1721.3,1720.7,9.1272]
[1693361604854,13.74926174,1721.3,1720.9,2.6807]
[1693361605184,3.91285789,1721.2,1720.9,2.6807]
[1693361605387,9.72284789,1721.2,1720.9,2.6807]
[1693361607276,10.93999174,1721.2,1720.9,2.6807]
[1693361607460,0.91285789,1721.1,1720.9,2.6807]
[1693361607661,6.72313789,1721.1,1720.7,1.5952]
[1693361607862,6.72313789,1721.1,1720.7,5.66208065]
[1693361608283,12.53341789,1721.1,1720.7,5.66208065]
[1693361608490,0.91285789,1721.0,1720.7,5.66208065]
[1693361609290,0.91285789,1721.0,1720.7,6.98148872]
[1693361612125,12.53413789,1721.0,1720.7,2.7886]
[1693361612281,0.91285789,1720.9,1720.7,2.7886]
[1693361613097,12.53471789,1720.9,1720.5,1.6395]
[1693361613308,12.53471789,1720.9,1720.3,8.18]
[1693361613309,13.75186174,1720.9,1720.3,8.18]
[1693361613510,13.75186174,1720.9,1720.4,5.61918065]
[1693361613511,0.91285789,1720.8,1720.4,5.61918065]
[1693361613690,0.91285789,1720.8,1720.4,2.7457]
[1693361613691,5.81165,1720.7,1720.4,2.7457]
[1693361614383,9.72428789,1720.8,1720.4,2.7457]
[1693361614905,15.53570789,1720.8,1720.4,2.7457]
[1693361615427,14.62285,1720.8,1720.4,2.7457]
[1693361615725,15.53570789,1720.8,1720.4,2.7457]
[1693361616098,21.34712789,1720.8,1720.3,8.18]
[1693361616413,0.91285789,1720.7,1720.3,8.18]
[1693361616613,11.62398,1720.6,1720.3,8.18]
[1693361616993,17.43597,1720.6,1720.3,8.18]
[1693361617199,3.0,1720.5,1720.3,8.18]
[1693361617410,11.6252,1720.4,1720.3,8.18]
[1693361617707,14.6252,1720.4,1720.3,8.18]
[1693361619743,8.8126,1720.4,1720.3,8.18]
[1693361619944,14.6252,1720.4,1720.3,8.18]
[1693361620909,3.0,1720.4,1720.3,8.18]
[1693361621235,5.81209,1720.6,1720.3,8.18]
[1693361621236,3.0,1720.6,1720.3,10.5457]
[1693361621435,8.81126,1720.8,1720.4,2.87348065]
[1693361621961,8.81126,1720.8,1720.5,2.7472]
[1693361622142,14.62266,1720.8,1720.5,2.7472]
[1693361626725,3.0,1720.8,1720.5,4.1542]
[1693361626932,3.46592587,1720.9,1720.6,0.41542]
[1693361627270,3.0,1720.9,1720.6,0.41542]
[1693361628279,3.0,1720.9,1720.6,3.28890065]
[1693361628620,8.81098,1720.9,1720.6,3.28890065]
[1693361628848,8.81098,1720.9,1720.7,0.32889007]
[1693361629067,8.81098,1720.9,1720.6,0.41542]
[1693361629353,8.81098,1720.9,1720.4,1.407]
[1693361629530,17.43525,1720.7,1720.3,8.18]
[1693361629848,5.81226,1720.5,1720.3,8.18]
[1693361631084,3.0,1720.6,1720.3,8.18]
[1693361631280,8.81162,1720.7,1720.3,8.18]
[1693361631430,5.81198,1720.6,1720.3,12.13461065]
[1693361631762,3.0,1720.5,1720.3,12.13461065]
[1693361633770,3.0,1720.6,1720.3,12.13461065]
[1693361634130,8.81198,1720.6,1720.3,12.13461065]
[1693361634632,3.0,1720.6,1720.4,1.21346107]
[1693361640085,3.45878485,1720.6,1720.4,1.21346107]
[1693361640308,0.45878485,1720.6,1720.4,1.21346107]
[1693361640596,8.81162,1720.7,1720.4,1.21346107]
[1693361641048,8.81162,1720.7,1720.3,12.13461065]
[1693361641253,8.81162,1720.7,1720.3,11.05348065]
[1693361641454,14.62324,1720.7,1720.3,11.05348065]
[1693361642674,14.62324,1720.7,1720.3,8.18]
[1693361643378,20.43486,1720.7,1720.3,8.18]
[1693361644495,1.887,1720.6,1720.3,8.18]
[1693361644654,11.62452,1720.5,1720.3,8.18]
[1693361647894,17.43678,1720.5,1720.3,8.18]
[1693361648094,4.407,1720.4,1719.9,2.6914]
[1693361648296,18.8463,1720.3,1719.9,2.6914]
[1693361648528,3.0,1720.2,1719.9,2.6914]
[1693361648662,11.62722,1720.1,1719.9,2.6914]
[1693361648867,11.62722,1720.1,1719.6,0.6076361]
[1693361649155,11.62722,1720.1,1719.7,5.44788065]
[1693361649156,3.0,1720.0,1719.7,5.44788065]
[1693361649432,5.81429,1719.9,1719.7,2.5744]
[1693361649866,11.62858,1719.9,1719.7,2.5744]
[1693361651037,5.81429,1719.9,1719.7,2.5744]
[1693361651824,8.81411,1720.0,1719.7,2.5744]
[1693361652824,14.62821,1720.0,1719.7,2.5744]
[1693361658812,20.44231,1720.0,1719.7,2.5744]
[1693361659116,21.84931,1720.0,1719.4,2.1548361]
[1693361659320,21.84931,1720.0,1719.5,3.68384582]
[1693361659536,21.84931,1720.0,1719.5,2.6733]
[1693361659832,16.0352,1720.0,1719.5,2.6733]
[1693361660426,21.84915,1720.0,1719.5,2.6733]
[1693361660710,16.03505,1720.0,1719.5,2.6733]
[1693361661374,14.62805,1720.0,1719.5,2.6733]
[1693361662317,20.442,1720.0,1719.5,2.6733]
[1693361663904,14.6279,1720.0,1719.5,2.6733]
[1693361664625,20.44185,1720.0,1719.5,2.6733]
[1693361665091,14.6279,1720.0,1719.5,2.6733]
[1693361665493,20.44185,1720.0,1719.5,2.6733]
[1693361665700,21.84885,1720.0,1719.5,2.6733]
[1693361665900,3.35348065,1719.9,1719.2,0.6076361]
[1693361666154,1.407,1719.6,1719.3,2.5902]
[1693361666437,5.81564,1719.5,1719.3,2.5902]
[1693361666586,11.63128,1719.5,1719.3,2.5902]
[1693361667388,5.81564,1719.5,1719.3,2.5902]
[1693361670096,16.038,1719.6,1719.3,2.5902]
[1693361670799,10.22248,1719.6,1719.3,2.5902]
[1693361671121,8.81548,1719.6,1719.3,2.5902]
[1693361672962,16.03801,1719.6,1719.3,2.5902]
[1693361673124,16.03801,1719.6,1719.0,2.7702]
[1693361673125,1.887,1719.5,1719.0,2.7702]
[1693361673327,1.407,1719.3,1718.9,0.1]
[1693361673546,17.45013,1719.2,1718.9,0.1]
[1693361674140,3.48,1719.1,1718.9,0.1]
[1693361674339,13.04166,1719.0,1718.9,0.1]
[1693361674541,22.33899,1719.0,1718.9,0.1]
[1693361675133,16.52166,1719.0,1718.9,0.1]
[1693361675336,22.33899,1719.0,1718.9,0.1]
[1693361675505,16.52166,1719.0,1718.9,0.1]
[1693361675699,15.11466,1719.0,1718.9,0.1]
[1693361675916,8.81733,1719.0,1718.9,0.1]
[1693361676300,14.63466,1719.0,1718.9,0.1]
[1693361676502,15.11466,1719.0,1718.9,0.1]
[1693361676708,3.48,1719.0,1718.9,0.1]
[1693361676904,3.0,1719.0,1718.9,0.1]
[1693361677531,8.81733,1719.0,1718.9,0.1]
[1693361678043,3.0,1719.0,1718.9,0.1]
[1693361678245,3.0,1719.1,1718.9,0.1]
[1693361679276,8.81703,1719.1,1718.9,0.1]
[1693361679975,14.63406,1719.1,1718.9,0.1]
[1693361680472,8.81703,1719.1,1718.9,0.1]
[1693361681174,14.63402,1719.1,1718.9,0.1]
[1693361682464,8.81699,1719.1,1718.9,0.1]
[1693361684965,3.0,1719.1,1718.9,0.1]
[1693361686340,8.81701,1719.1,1718.9,0.1]
[1693361688592,3.0,1719.1,1718.9,0.1]
[1693361689869,2.3934767,1719.1,1718.9,0.1]
[1693361690071,0.45739309,1719.2,1718.9,0.51947]
[1693361690377,0.17326942,1719.3,1718.9,0.51947]
[1693361690572,0.17326942,1719.3,1718.9,2.13770879]
[1693361690887,5.81638,1719.3,1718.9,0.51947]
[1693361691596,11.63276,1719.3,1718.9,0.1]
[1693361691822,17.44914,1719.3,1718.9,0.1]
[1693361692029,3.48,1719.2,1718.9,0.1]
[1693361692173,5.81699,1719.1,1718.9,0.1]
[1693361692369,3.0,1719.0,1718.9,0.1]
[1693361692677,3.0,1719.0,1718.9,1.11088523]
[1693361695110,21.85899,1719.0,1718.9,0.1]
[1693361695312,22.33899,1719.0,1718.9,0.1]
[1693361695695,20.93199,1719.0,1718.9,0.1]
[1693361696209,25.21247065,1719.0,1718.9,0.1]
[1693361696794,25.44542365,1719.0,1718.9,0.1]
[1693361699084,25.44542365,1719.0,1718.5,0.1]
[1693361699085,3.0,1718.6,1718.5,0.1]
[1693361699411,24.73652065,1718.6,1718.5,0.1]
[1693361699593,28.21652065,1718.6,1718.5,0.1]
[1693361699795,23.93604,1718.6,1718.5,0.1]
[1693361700914,20.93604,1718.6,1718.5,0.1]
[1693361701114,15.11736,1718.6,1718.5,0.1]
[1693361701697,20.93604,1718.6,1718.5,0.1]
[1693361703733,14.63736,1718.6,1718.5,0.1]
[1693361703937,3.0,1718.6,1718.5,0.1]
[1693361704145,5.81818,1718.8,1718.5,0.1]
[1693361704146,3.0,1718.7,1718.5,0.1]
[1693361704438,8.8184,1718.7,1718.5,0.1]
[1693361707202,0.232953,1719.0,1718.6,2.87348065]
[1693361707445,7.14826239,1719.1,1718.7,1.407]
[1693361707446,6.276598,1719.1,1718.7,1.407]
[1693361707738,6.276598,1719.1,1718.8,2.87348065]
[1693361708538,6.276598,1719.1,1718.8,3.43381872]
[1693361708757,3.0,1719.0,1718.7,2.7299]
[1693361708902,8.81734,1719.0,1718.7,5.60338065]
[1693361709106,8.81734,1719.0,1718.7,2.7299]
[1693361711921,20.45202,1719.0,1718.7,2.7299]
[1693361715843,24.03402683,1719.0,1718.7,2.7299]
[1693361716044,24.03402683,1719.0,1718.5,0.70741836]
[1693361716251,25.86242683,1719.0,1718.6,1.01112983]
[1693361716964,15.21668683,1719.0,1718.6,3.88461048]
[1693361717195,5.81734,1719.0,1718.6,3.31660547]
[1693361717331,6.276618,1719.1,1718.7,2.87348065]
[1693361717678,12.093928,1719.1,1718.6,0.44312482]
[1693361717835,12.67593483,1719.1,1718.7,1.01106351]
[1693361718254,0.58200683,1719.0,1718.6,2.87348065]